[Event "GER-chT Youth Countries 2018"]
[Site "Wurzburg"]
[Date "2018.10.05"]
[Round "4"]
[White "Lutz, Adam"]
[Black "Reuter, Elisa"]
[Result "0-1"]
[ECO "B35"]
[WhiteElo "1787"]
[BlackElo "1786"]
[Annotator "NA"]
[PlyCount "158"]
[EventDate "2018.10.03"]
[EventType "team-tourn"]
[EventCountry "GER"]
[SourceTitle "playchess.com"]
[Source "ChessBase"]
[SourceQuality "1"]
[TimeControl "40/5400+30:1800+30"]

1. e4 {[%emt 0:00:00]} c5 {[%emt 0:00:00]} 2. Nf3 {[%emt 0:00:00]} Nc6 {[%emt 0:00:00]} 3. d4 {[%emt 0:00:03]} cxd4 {[%emt 0:00:00]} 4. Nxd4 {[%emt 0:00:09]} g6 {[%emt 0:00:00]} 5. Nc3 {[%emt 0:00:11]} Bg7 {[%emt 0:00:00]} 6. Be3 {[%emt 0:00:07]} Nf6 {[%emt 0:00:00]} 7. Bc4 {[%emt 0:00:34]} Qa5 {[%emt 0:00:00]} 8. O-O {[%emt 0:01:29]} O-O {[%emt 0:00:00]} 9. Bb3 {[%emt 0:01:24]} d6 {[%emt 0:00:00]} 10. h3 {[%emt 0:00:38]} Bd7 {[%emt 0:00:03]} 11. Re1 {[%emt 0:01:04]} Rac8 {[%emt 0:03:04]} 12. Nd5 {[%emt 0:07:15]} Rfe8 {[%emt 0:13:29]} 13. Bd2 {[%emt 0:09:06]} Qd8 {[%emt 0:00:43]} 14. Bc3 {[%emt 0:01:07]} Nxd5 {[%emt 0:08:40]} 15. exd5 {[%emt 0:00:49]} Na5 {[%emt 0:04:46]} 16. Qf3 {[%emt 0:04:19]} Nxb3 {[%emt 0:04:42]} 17. axb3 {[%emt 0:00:17]} Ra8 {[%emt 0:04:10]} 18. Ne6 {[%emt 0:12:18]} fxe6 {[%emt 0:10:03]} 19. dxe6 {[%emt 0:00:09]} Rf8 {[%emt 0:01:39]} 20. Qxb7 {[%emt 0:00:49]} Bxc3 {[%emt 0:04:21]} 21. bxc3 {[%emt 0:00:43]} Be8 {[%emt 0:00:32]} 22. Rxa7 {[%emt 0:00:43]} Rxa7 {[%emt 0:00:06]} 23. Qxa7 {[%emt 0:00:16]} Bc6 {[%emt 0:02:24]} 24. c4 {[%emt 0:00:42]} Re8 {[%emt 0:02:44]} 25. Rd1 {[%emt 0:03:14]} Qa8 {[%emt 0:01:02]} 26. Qc7 {[%emt 0:00:08]} Bxg2 {[%emt 0:00:50]} 27. Rxd6 {[%emt 0:00:19]} Bxh3 {[%emt 0:07:30]} 28. Rc6 {[%emt 0:01:50]} Bf5 {[%emt 0:02:09]} 29. Qd7 {[%emt 0:04:00]} Qd8 {[%emt 0:02:24]} 30. Qd5 {[%emt 0:01:53]} Bxc2 {[%emt 0:03:17]} 31. Qxd8 {[%emt 0:03:17]} Rxd8 {[%emt 0:00:30]} 32. b4 {[%emt 0:00:14]} Rd1+ {[%emt 0:02:11]} 33. Kh2 {[%emt 0:00:03]} Rb1 {[%emt 0:00:33]} 34. b5 {[%emt 0:01:00]} Bd3 {[%emt 0:00:12]} 35. b6 {[%emt 0:00:34]} Bxc4 {[%emt 0:00:54]} 36. Rxc4 {[%emt 0:01:24]} Rxb6 {[%emt 0:00:03]} 37. Re4 {[%emt 0:00:43]} Kg7 {[%emt 0:00:02]} 38. Kg2 {[%emt 0:03:56]} Kf6 {[%emt 0:00:07]} 39. Re3 {[%emt 0:00:24]} Rxe6 {[%emt 0:00:05]} 40. Rf3+ {[%emt 0:00:10]} Kg7 {[%emt 0:00:04]} 41. Rg3 {[%emt 0:31:03]} Rf6 {[%emt 0:30:20]} 42. Re3 {[%emt 0:00:44]} Kf7 {[%emt 0:00:09]} 43. Ra3 {[%emt 0:01:25]} h5 {[%emt 0:00:54]} 44. Rh3 {[%emt 0:01:16]} Rf5 {[%emt 0:00:11]} 45. Ra3 {[%emt 0:00:50]} g5 {[%emt 0:00:16]} 46. Ra6 {[%emt 0:01:10]} h4 {[%emt 0:00:22]} 47. Rh6 {[%emt 0:01:59]} e5 {[%emt 0:01:32]} 48. Ra6 {[%emt 0:01:27]} Rf6 {[%emt 0:02:11]} 49. Ra5 {[%emt 0:00:38]} Ke6 {[%emt 0:00:59]} 50. Ra3 {[%emt 0:00:54]} Kf5 {[%emt 0:00:43]} 51. Rf3+ {[%emt 0:00:16]} Kg6 {[%emt 0:00:09]} 52. Re3 {[%emt 0:00:12]} Rf5 {[%emt 0:00:30]} 53. Re2 {[%emt 0:02:53]} g4 {[%emt 0:00:21]} 54. Re4 {[%emt 0:03:26]} Kg5 {[%emt 0:00:08]} 55. Re2 {[%emt 0:01:03]} Kf4 {[%emt 0:01:10]} 56. Ra2 {[%emt 0:01:08]} e4 {[%emt 0:00:41]} 57. Rb2 {[%emt 0:01:08]} h3+ {[%emt 0:01:04]} 58. Kg1 {[%emt 0:01:50]} g3 {[%emt 0:01:37]} 59. fxg3+ {[%emt 0:01:06]} Kxg3 {[%emt 0:00:06]} 60. Rg2+ {[%emt 0:00:49]} Kf3 {[%emt 0:01:26]} 61. Rf2+ {[%emt 0:01:29]} Kg4 {[%emt 0:00:05]} 62. Re2 {[%emt 0:01:15]} Kf4 {[%emt 0:00:20]} 63. Rf2+ {[%emt 0:00:56]} Ke5 {[%emt 0:00:06]} 64. Ra2 {[%emt 0:00:40]} Rf3 {[%emt 0:00:04]} 65. Ra5+ {[%emt 0:01:03]} Kf4 {[%emt 0:00:06]} 66. Ra8 {[%emt 0:00:14]} e3 {[%emt 0:01:20]} 67. Rf8+ {[%emt 0:00:34]} Ke4 {[%emt 0:00:21]} 68. Re8+ {[%emt 0:01:32]} Kd3 {[%emt 0:00:30]} 69. Rd8+ {[%emt 0:00:29]} Ke2 {[%emt 0:00:08]} 70. Ra8 {[%emt 0:00:41]} Rf2 {[%emt 0:00:51]} 71. Ra2+ {[%emt 0:02:15]} Kf3 {[%emt 0:00:05]} 72. Ra8 {[%emt 0:00:21]} Rg2+ {[%emt 0:01:03]} 73. Kh1 {[%emt 0:00:33]} Rc2 {[%emt 0:00:28]} 74. Rf8+ {[%emt 0:02:12]} Ke2 {[%emt 0:00:19]} 75. Rf1 {[%emt 0:03:44]} Kd2 {[%emt 0:00:33]} 76. Rf8 {[%emt 0:00:23]} e2 {[%emt 0:00:09]} 77. Rd8+ {[%emt 0:00:28]} Kc1 {[%emt 0:00:08]} 78. Re8 {[%emt 0:00:25]} Kd1 {[%emt 0:00:10]} 79. Rd8+ {[%emt 0:01:11]} Rd2 {[%emt 0:00:06]} 0-1

[Event "GER-chT Youth Countries 2018"]
[Site "Wurzburg"]
[Date "2018.10.05"]
[Round "4"]
[White "Roessel, Gino"]
[Black "Kluehs, Gustaf"]
[Result "1-0"]
[ECO "C01"]
[WhiteElo "1778"]
[BlackElo "1775"]
[Annotator "NA"]
[PlyCount "64"]
[EventDate "2018.10.03"]
[EventType "team-tourn"]
[EventCountry "GER"]
[SourceTitle "playchess.com"]
[Source "ChessBase"]
[SourceQuality "1"]
[TimeControl "40/5400+30:1800+30"]

1. e4 {[%emt 0:00:00]} e6 {[%emt 0:00:00]} 2. d4 {[%emt 0:00:00]} d5 {[%emt 0:00:00]} 3. exd5 {[%emt 0:03:01]} exd5 {[%emt 0:00:00]} 4. Nf3 {[%emt 0:01:07]} Bd6 {[%emt 0:00:00]} 5. Bd3 {[%emt 0:03:25]} Nc6 {[%emt 0:00:00]} 6. O-O {[%emt 0:02:59]} Nge7 {[%emt 0:00:02]} 7. c3 {[%emt 0:06:18]} Bg4 {[%emt 0:01:04]} 8. Be3 {[%emt 0:06:36]} Qd7 {[%emt 0:00:50]} 9. Nbd2 {[%emt 0:02:52]} O-O-O {[%emt 0:00:40]} 10. b4 {[%emt 0:07:04]} Rde8 {[%emt 0:00:07]} 11. a4 {[%emt 0:06:14]} f6 {[%emt 0:01:33]} 12. a5 {[%emt 0:12:39]} g5 {[%emt 0:03:46]} 13. b5 {[%emt 0:02:30]} Nd8 {[%emt 0:00:06]} 14. b6 {[%emt 0:00:57]} a6 {[%emt 0:01:56]} 15. bxc7 {[%emt 0:02:32]} Qxc7 {[%emt 0:00:27]} 16. c4 {[%emt 0:06:33]} Bxh2+ {[%emt 0:10:13]} 17. Kh1 {[%emt 0:01:47]} Bf4 {[%emt 0:01:27]} 18. Qb3 {[%emt 0:06:52]} Be6 {[%emt 0:03:02]} 19. Rfc1 {[%emt 0:01:58]} Ndc6 {[%emt 0:00:58]} 20. cxd5 {[%emt 0:04:22]} Bxd5 {[%emt 0:00:28]} 21. Bc4 {[%emt 0:05:34]} Qd7 {[%emt 0:03:17]} 22. Bxd5 {[%emt 0:02:09]} Nxd5 {[%emt 0:00:14]} 23. Bxf4 {[%emt 0:01:29]} gxf4 {[%emt 0:00:21]} 24. Rc5 {[%emt 0:00:49]} Nc7 {[%emt 0:02:52]} 25. d5 {[%emt 0:01:13]} Ne5 {[%emt 0:20:19]} 26. Nxe5 {[%emt 0:01:11]} fxe5 {[%emt 0:00:27]} 27. Rb1 {[%emt 0:00:50]} Kd8 {[%emt 0:12:02]} 28. Qxb7 {[%emt 0:00:59]} Nb5 {[%emt 0:01:13]} 29. Qxa6 {[%emt 0:00:21]} Nd4 {[%emt 0:01:03]} 30. Rb7 {[%emt 0:00:35]} Ke7 {[%emt 0:02:07]} 31. Rxd7+ {[%emt 0:00:08]} Kxd7 {[%emt 0:00:04]} 32. Qb7+ {[%emt 0:00:11]} Kd6 {[%emt 0:00:12] dxe6} 1-0

[Event "GER-chT Youth Countries 2018"]
[Site "Wurzburg"]
[Date "2018.10.05"]
[Round "4"]
[White "Block, Timo"]
[Black "Klenk, Sofie"]
[Result "1/2-1/2"]
[ECO "B22"]
[WhiteElo "1777"]
[BlackElo "1873"]
[Annotator "NA"]
[PlyCount "70"]
[EventDate "2018.10.03"]
[EventType "team-tourn"]
[EventCountry "GER"]
[SourceTitle "playchess.com"]
[Source "ChessBase"]
[SourceQuality "1"]
[TimeControl "40/5400+30:1800+30"]

1. e4 {[%emt 0:00:00]} c5 {[%emt 0:00:00]} 2. c3 {[%emt 0:00:00]} d5 {[%emt 0:00:00]} 3. exd5 {[%emt 0:00:00]} Qxd5 {[%emt 0:00:00]} 4. d4 {[%emt 0:00:00]} e6 {[%emt 0:00:00]} 5. Nf3 {[%emt 0:01:24]} Nf6 {[%emt 0:00:00]} 6. Bf4 {[%emt 0:03:29]} Nc6 {[%emt 0:05:39]} 7. Be2 $11 {[%emt 0:04:27]} cxd4 {[%emt 0:05:58]} 8. cxd4 {[%emt 0:00:23]} Bb4+ {[%emt 0:08:23]} 9. Bd2 {[%emt 0:02:32]} Bxd2+ {[%emt 0:01:08]} 10. Qxd2 {[%emt 0:00:25]} O-O {[%emt 0:02:17]} 11. Nc3 {[%emt 0:03:50]} Qd8 {[%emt 0:05:06]} 12. O-O {[%emt 0:00:53]} b6 {[%emt 0:06:46]} 13. Rac1 {[%emt 0:04:52]} Bb7 {[%emt 0:00:25]} 14. a3 {[%emt 0:06:45]} Rc8 {[%emt 0:04:20]} 15. b4 {[%emt 0:04:27]} Nd5 {[%emt 0:04:45]} 16. Nxd5 {[%emt 0:05:00]} Qxd5 {[%emt 0:00:23]} 17. Bc4 {[%emt 0:00:17]} Qf5 {[%emt 0:11:53]} 18. Bd3 {[%emt 0:05:24]} Qd5 {[%emt 0:10:38]} 19. Bc4 {[%emt 0:04:38]} Qh5 {[%emt 0:03:29]} 20. Qe3 {[%emt 0:04:50]} Ne7 {[%emt 0:06:03]} 21. Ne5 {[%emt 0:05:46]} Nd5 {[%emt 0:02:55]} 22. Qg3 {[%emt 0:00:48]} Rfd8 {[%emt 0:05:13]} 23. Rfd1 {[%emt 0:04:50]} Qf5 {[%emt 0:00:25]} 24. Ng4 {[%emt 0:18:21]} Qf4 {[%emt 0:03:45]} 25. Qxf4 {[%emt 0:04:27]} Nxf4 {[%emt 0:00:01]} 26. f3 {[%emt 0:00:24]} h6 {[%emt 0:01:00]} 27. Ne3 {[%emt 0:02:05]} Kf8 {[%emt 0:02:30]} 28. Kf2 {[%emt 0:01:29]} Nd5 {[%emt 0:02:12]} 29. Nxd5 {[%emt 0:00:47]} Bxd5 {[%emt 0:00:08]} 30. Bxd5 {[%emt 0:00:27]} Rxc1 {[%emt 0:01:42]} 31. Rxc1 {[%emt 0:00:09]} Rxd5 {[%emt 0:00:03]} 32. Ke3 {[%emt 0:00:48]} Rd7 {[%emt 0:00:16]} 33. g4 {[%emt 0:05:07]} Ke7 {[%emt 0:00:36]} 34. Ke4 {[%emt 0:01:58]} Kd6 {[%emt 0:01:00]} 35. Rc8 {[%emt 0:01:22]} Ke7 {[%emt 0:01:24]} 1/2-1/2

[Event "GER-chT Youth Countries 2018"]
[Site "Wurzburg"]
[Date "2018.10.05"]
[Round "4"]
[White "Schnabel, Luise"]
[Black "Koenze, Heike"]
[Result "1/2-1/2"]
[ECO "B92"]
[WhiteElo "1753"]
[BlackElo "1845"]
[Annotator "NA"]
[PlyCount "116"]
[EventDate "2018.10.03"]
[EventType "team-tourn"]
[EventCountry "GER"]
[SourceTitle "playchess.com"]
[Source "ChessBase"]
[SourceQuality "1"]
[TimeControl "40/5400+30:1800+30"]

1. e4 {[%emt 0:00:00]} c5 {[%emt 0:00:00]} 2. Nf3 {[%emt 0:00:00]} d6 {[%emt 0:00:00]} 3. d4 {[%emt 0:00:00]} cxd4 {[%emt 0:00:00]} 4. Nxd4 {[%emt 0:00:01]} Nf6 {[%emt 0:00:07]} 5. Nc3 {[%emt 0:00:10]} a6 {[%emt 0:00:07]} 6. Be2 {[%emt 0:00:17]} e5 {[%emt 0:00:08]} 7. Nb3 {[%emt 0:00:12]} Be7 {[%emt 0:00:12]} 8. Qd3 {[%emt 0:00:31]} Be6 {[%emt 0:09:44]} 9. Nd5 {[%emt 0:02:27] LiveBook: 6 Games} Bxd5 {[%emt 0:01:27]} 10. exd5 {[%emt 0:00:09]} b5 $14 {[%emt 0:02:10]} 11. a4 {[%emt 0:05:08]} b4 {[%emt 0:01:40]} 12. Bd2 {[%emt 0:07:31]} a5 {[%emt 0:02:41]} 13. O-O {[%emt 0:11:12]} O-O {[%emt 0:00:38]} 14. c3 {[%emt 0:03:19]} Na6 {[%emt 0:06:17]} 15. c4 {[%emt 0:17:57]} Nd7 {[%emt 0:02:48]} 16. Be3 {[%emt 0:10:59]} Bg5 {[%emt 0:02:46]} 17. Nd2 {[%emt 0:15:49]} f5 {[%emt 0:03:15]} 18. f4 {[%emt 0:03:56]} exf4 {[%emt 0:04:41]} 19. Bxf4 {[%emt 0:00:37]} Nac5 {[%emt 0:02:07]} 20. Qg3 {[%emt 0:04:46]} Bxf4 {[%emt 0:00:11]} 21. Qxf4 {[%emt 0:01:09]} Qf6 {[%emt 0:01:14]} 22. Nf3 {[%emt 0:03:57]} Qxb2 {[%emt 0:02:13]} 23. Nd4 {[%emt 0:01:34]} Nb3 {[%emt 0:04:04]} 24. Nxb3 {[%emt 0:04:48]} Qxb3 {[%emt 0:01:16]} 25. Qxd6 {[%emt 0:02:23]} Qe3+ {[%emt 0:00:37]} 26. Rf2 {[%emt 0:01:58]} Nc5 {[%emt 0:01:15]} 27. Qf4 {[%emt 0:01:08]} Rae8 {[%emt 0:01:33]} 28. Qxe3 {[%emt 0:00:44]} Rxe3 {[%emt 0:00:10]} 29. Raf1 {[%emt 0:00:58]} Ne4 {[%emt 0:02:22]} 30. Bf3 {[%emt 0:00:42]} Nxf2 {[%emt 0:00:24]} 31. Kxf2 {[%emt 0:00:03]} Rd3 {[%emt 0:01:01]} 32. c5 {[%emt 0:00:32]} b3 {[%emt 0:01:18]} 33. Rb1 {[%emt 0:00:29]} Rc3 {[%emt 0:00:56]} 34. c6 {[%emt 0:00:25]} Rc2+ {[%emt 0:00:17]} 35. Kg3 {[%emt 0:00:25]} g5 {[%emt 0:06:27]} 36. d6 {[%emt 0:00:37]} h5 {[%emt 0:01:29]} 37. h3 {[%emt 0:00:25]} b2 {[%emt 0:03:24]} 38. d7 {[%emt 0:00:37]} h4+ {[%emt 0:02:19]} 39. Kh2 {[%emt 0:00:06]} Kf7 {[%emt 0:00:31]} 40. Rxb2 {[%emt 0:00:56]} Rxb2 {[%emt 0:00:11]} 41. c7 {[%emt 0:30:08]} Rbb8 {[%emt 0:30:33]} 42. Bb7 {[%emt 0:00:00]} Rxb7 {[%emt 0:00:00]} 43. c8=Q {[%emt 0:00:00]} Rb8 {[%emt 0:00:00]} 44. Qc4+ {[%emt 0:00:00]} Ke7 {[%emt 0:00:00]} 45. Qd5 {[%emt 0:00:00]} Rbd8 {[%emt 0:00:00]} 46. Qe5+ {[%emt 0:00:00]} Kxd7 {[%emt 0:00:00]} 47. Qg7+ {[%emt 0:00:00]} Ke6 {[%emt 0:00:00]} 48. Qxg5 {[%emt 0:00:00]} Rh8 {[%emt 0:00:00]} 49. Qe3+ {[%emt 0:00:00]} Kf6 {[%emt 0:00:00]} 50. Qb6+ {[%emt 0:00:00]} Kg5 {[%emt 0:00:00]} 51. Qxa5 {[%emt 0:00:00]} Ra8 {[%emt 0:00:00]} 52. Qb4 {[%emt 0:00:00]} Kf6 {[%emt 0:00:00]} 53. a5 {[%emt 0:00:00]} Kg5 {[%emt 0:00:00]} 54. Kg1 {[%emt 0:00:00]} Kg6 {[%emt 0:00:00]} 55. Kf2 {[%emt 0:00:00]} Rab8 {[%emt 0:00:00]} 56. Qd6+ {[%emt 0:00:00]} Kg5 {[%emt 0:00:00]} 57. Qe7+ {[%emt 0:00:00]} Kg6 {[%emt 0:00:00]} 58. Qe6+ {[%emt 0:00:52]} Kg5 {[%emt 0:00:00]} 1/2-1/2

[Event "GER-chT Youth Countries 2018"]
[Site "Wurzburg"]
[Date "2018.10.05"]
[Round "4"]
[White "Doll, Rebecca"]
[Black "Kunisch, Nina"]
[Result "1/2-1/2"]
[ECO "B22"]
[WhiteElo "1722"]
[BlackElo "1740"]
[Annotator "NA"]
[PlyCount "117"]
[EventDate "2018.10.03"]
[EventType "team-tourn"]
[EventCountry "GER"]
[SourceTitle "playchess.com"]
[Source "ChessBase"]
[SourceQuality "1"]
[TimeControl "40/5400+30:1800+30"]

1. e4 {[%emt 0:00:00]} c5 {[%emt 0:00:00]} 2. c3 {[%emt 0:00:00]} Nf6 {[%emt 0:01:20]} 3. e5 {[%emt 0:00:00]} Nd5 {[%emt 0:00:11]} 4. Bc4 {[%emt 0:00:00]} Nb6 {[%emt 0:00:06]} 5. Bb3 {[%emt 0:00:00]} c4 {[%emt 0:01:02]} 6. Bc2 {[%emt 0:00:03]} Nc6 {[%emt 0:00:23]} 7. Nf3 {[%emt 0:00:05]} g6 {[%emt 0:14:21]} 8. O-O {[%emt 0:09:27]} Bg7 {[%emt 0:01:27]} 9. Re1 {[%emt 0:04:29]} O-O {[%emt 0:02:14]} 10. d4 {[%emt 0:07:57]} cxd3 {[%emt 0:04:20]} 11. Qxd3 {[%emt 0:01:20]} e6 {[%emt 0:03:52]} 12. Nbd2 {[%emt 0:09:34]} a6 {[%emt 0:10:30]} 13. a3 {[%emt 0:14:34]} Qc7 {[%emt 0:06:11]} 14. Qe2 {[%emt 0:16:27]} Nd5 {[%emt 0:16:16]} 15. Nf1 b5 {[%emt 0:10:14]} 16. h3 {[%emt 0:14:03]} Bb7 {[%emt 0:01:09]} 17. N1h2 {[%emt 0:01:46]} f5 {[%emt 0:03:50]} 18. exf6 {[%emt 0:01:30]} Nxf6 {[%emt 0:00:12]} 19. Bg5 {[%emt 0:01:28]} Na5 {[%emt 0:06:32]} 20. Ne5 {[%emt 0:03:01]} Nc4 {[%emt 0:04:16]} 21. Nxc4 {[%emt 0:04:19]} Qxc4 {[%emt 0:00:27]} 22. Qd2 {[%emt 0:02:45]} Qd5 {[%emt 0:00:36]} 23. Nf3 {[%emt 0:01:57]} Qxd2 {[%emt 0:01:15]} 24. Nxd2 {[%emt 0:00:48]} Rac8 {[%emt 0:02:38]} 25. Rad1 {[%emt 0:01:21]} Rf7 {[%emt 0:01:47]} 26. Ne4 {[%emt 0:02:19]} Nxe4 {[%emt 0:01:30]} 27. Bxe4 {[%emt 0:00:10]} Bxe4 {[%emt 0:00:40]} 28. Rxe4 {[%emt 0:00:44]} Rcf8 {[%emt 0:01:01]} 29. f3 {[%emt 0:01:14]} Rc8 {[%emt 0:01:44]} 30. Re2 {[%emt 0:01:10]} Rc5 {[%emt 0:00:24]} 31. Bh4 {[%emt 0:00:38]} Bh6 {[%emt 0:00:53]} 32. Bf2 {[%emt 0:00:27]} Rc7 {[%emt 0:00:50]} 33. Bg3 {[%emt 0:00:36]} Rb7 {[%emt 0:01:18]} 34. Bd6 {[%emt 0:00:37]} Rb6 {[%emt 0:01:36]} 35. Re4 {[%emt 0:00:43]} Bg7 {[%emt 0:00:23]} 36. Be5 {[%emt 0:00:20]} Bxe5 {[%emt 0:00:39]} 37. Rxe5 {[%emt 0:00:05]} Kf8 {[%emt 0:00:13]} 38. Rc5 {[%emt 0:00:27]} d5 {[%emt 0:01:02]} 39. Rc8+ {[%emt 0:00:37]} Ke7 {[%emt 0:00:25]} 40. Rc7+ {[%emt 0:00:17]} Kf6 {[%emt 0:00:18]} 41. Rxf7+ {[%emt 0:30:21]} Kxf7 {[%emt 0:30:01]} 42. Kf2 {[%emt 0:00:14]} Kf6 {[%emt 0:01:06]} 43. Ke3 {[%emt 0:01:06]} Rc6 {[%emt 0:00:00]} 44. f4 {[%emt 0:00:00]} Rc4 {[%emt 0:00:00]} 45. Rd4 {[%emt 0:00:00]} Rxd4 {[%emt 0:00:00]} 46. cxd4 {[%emt 0:00:00]} Kf5 {[%emt 0:00:00]} 47. g4+ {[%emt 0:00:00]} Kf6 {[%emt 0:00:00]} 48. g5+ {[%emt 0:00:00]} Ke7 {[%emt 0:00:00]} 49. Kd3 {[%emt 0:00:44]} Kd6 {[%emt 0:00:00]} 50. Kc3 {[%emt 0:01:24]} a5 51. b4 {[%emt 0:01:21]} a4 {[%emt 0:00:00]} 52. Kd3 {[%emt 0:00:09]} Ke7 {[%emt 0:00:00]} 53. Ke3 {[%emt 0:00:20]} Kf7 {[%emt 0:00:00]} 54. Kf3 {[%emt 0:00:18]} Ke7 {[%emt 0:00:00]} 55. Kg4 {[%emt 0:00:28]} Kf7 {[%emt 0:00:00]} 56. h4 {[%emt 0:00:13]} Ke7 {[%emt 0:00:00]} 57. h5 {[%emt 0:00:17]} Kf7 {[%emt 0:00:00]} 58. Kh4 {[%emt 0:00:48]} Ke7 {[%emt 0:00:00]} 59. Kg4 {[%emt 0:00:05]} 1/2-1/2

[Event "GER-chT Youth Countries 2018"]
[Site "Wurzburg"]
[Date "2018.10.05"]
[Round "4"]
[White "Alsheimer, Lea"]
[Black "Fischer, Darja"]
[Result "1-0"]
[ECO "D05"]
[WhiteElo "1716"]
[BlackElo "1456"]
[Annotator "NA"]
[PlyCount "65"]
[EventDate "2018.10.03"]
[EventType "team-tourn"]
[EventCountry "GER"]
[SourceTitle "playchess.com"]
[Source "ChessBase"]
[SourceQuality "1"]
[TimeControl "40/5400+30:1800+30"]

1. d4 {[%emt 0:00:00]} d5 {[%emt 0:00:00]} 2. Nf3 {[%emt 0:00:00]} Nf6 {[%emt 0:00:00]} 3. e3 {[%emt 0:00:05]} e6 {[%emt 0:00:10]} 4. Bd3 {[%emt 0:00:32]} c5 {[%emt 0:01:18]} 5. b3 {[%emt 0:00:59]} Nc6 {[%emt 0:00:55]} 6. Bb2 {[%emt 0:01:28]} Qc7 {[%emt 0:00:44]} 7. a3 {[%emt 0:00:21]} cxd4 {[%emt 0:00:36]} 8. exd4 {[%emt 0:00:35]} g6 {[%emt 0:00:29]} 9. Nbd2 {[%emt 0:02:20]} Bg7 {[%emt 0:00:49]} 10. Rc1 {[%emt 0:01:37]} a6 {[%emt 0:03:34]} 11. O-O {[%emt 0:03:29]} O-O {[%emt 0:01:36]} 12. Re1 {[%emt 0:02:09]} b6 {[%emt 0:02:00]} 13. Qe2 {[%emt 0:07:02]} Bb7 {[%emt 0:01:27]} 14. Ne5 {[%emt 0:02:24]} Rfe8 {[%emt 0:05:19]} 15. c4 {[%emt 0:05:02]} a5 {[%emt 0:09:40]} 16. Ndf3 {[%emt 0:15:01]} Rac8 {[%emt 0:02:24]} 17. Nxc6 {[%emt 0:05:37]} Bxc6 {[%emt 0:03:54]} 18. Ne5 {[%emt 0:01:03]} Qb7 {[%emt 0:01:21]} 19. cxd5 {[%emt 0:01:41]} Bxd5 {[%emt 0:01:40]} 20. Ba6 {[%emt 0:00:14]} Qb8 {[%emt 0:01:29]} 21. Rxc8 {[%emt 0:00:31]} Rxc8 {[%emt 0:00:08]} 22. Bxc8 {[%emt 0:00:17]} Qxc8 {[%emt 0:00:06]} 23. Rc1 {[%emt 0:00:04]} Qb7 {[%emt 0:00:50]} 24. Qc2 {[%emt 0:01:17]} Ne8 {[%emt 0:05:19]} 25. Qc8 {[%emt 0:04:05]} Qxc8 {[%emt 0:02:07]} 26. Rxc8 {[%emt 0:00:09]} Kf8 {[%emt 0:00:20]} 27. Nc4 {[%emt 0:02:46]} Ke7 {[%emt 0:00:57]} 28. Nxb6 {[%emt 0:02:47]} Bxb3 {[%emt 0:01:17]} 29. Ra8 {[%emt 0:00:32]} a4 {[%emt 0:01:19]} 30. Ra7+ {[%emt 0:00:24]} Kf8 {[%emt 0:00:47]} 31. Nd7+ {[%emt 0:01:04]} Ke7 {[%emt 0:00:26]} 32. Ne5+ {[%emt 0:00:32]} Kd6 {[%emt 0:00:30]} 33. Rd7# {Kd5} 1-0

[Event "GER-chT Youth Countries 2018"]
[Site "Wurzburg"]
[Date "2018.10.05"]
[Round "4"]
[White "Deuer, Marius"]
[Black "Basovskiy, Jana"]
[Result "0-1"]
[ECO "B40"]
[WhiteElo "1711"]
[BlackElo "1772"]
[Annotator "NA"]
[PlyCount "43"]
[EventDate "2018.10.03"]
[EventType "team-tourn"]
[EventCountry "GER"]
[SourceTitle "playchess.com"]
[Source "ChessBase"]
[SourceQuality "1"]
[TimeControl "40/5400+30:1800+30"]

1. e4 {[%emt 0:00:00]} c5 {[%emt 0:00:00]} 2. Nf3 {[%emt 0:00:00]} e6 {[%emt 0:00:00]} 3. c3 {[%emt 0:00:00]} Nf6 {[%emt 0:00:00]} 4. e5 {[%emt 0:00:00]} Nd5 {[%emt 0:00:00]} 5. d4 {[%emt 0:00:00]} cxd4 {[%emt 0:00:00]} 6. cxd4 {[%emt 0:00:00]} Nc6 {[%emt 0:00:00]} 7. Bc4 {[%emt 0:00:55]} d6 {[%emt 0:00:07]} 8. O-O {[%emt 0:00:12]} Be7 {[%emt 0:00:37]} 9. Bd2 {[%emt 0:01:13]} O-O {[%emt 0:03:16]} 10. Nc3 {[%emt 0:03:09]} Nb6 {[%emt 0:09:49]} 11. Bb3 {[%emt 0:13:07]} Bd7 {[%emt 0:20:45]} 12. Qe2 {[%emt 0:15:14]} Rc8 {[%emt 0:10:52]} 13. Bc2 {[%emt 0:04:52]} Nb4 {[%emt 0:06:13]} 14. Bb1 {[%emt 0:07:36]} Bc6 {[%emt 0:05:26]} 15. a3 {[%emt 0:05:30]} N4d5 {[%emt 0:01:17]} 16. Ne4 {[%emt 0:10:07]} dxe5 {[%emt 0:15:04]} 17. dxe5 {[%emt 0:04:37]} Qc7 {[%emt 0:03:28]} 18. Neg5 {[%emt 0:04:15]} g6 {[%emt 0:01:26]} 19. Nh4 {[%emt 0:05:03]} Bd7 {[%emt 0:05:38]} 20. f4 {[%emt 0:05:16]} Qc4 {[%emt 0:04:33]} 21. Qg4 {[%emt 0:08:31]} Bc5+ {[%emt 0:01:43]} 22. Kh1 0-1